Cogmind - Beta 9.4 @@@ ROGUE MODE // 2020.03.23 @ 21:50:48 Player: YppY Result: Destroyed by G-47 Trooper with Particle Gun Performance ------------- Evolutions (2) 1000 Regions Visited (7) 1400 Robots Destroyed (57) 285 Value Destroyed (1669) 1669 Prototype IDs (26) 520 Alien Tech Used (0) 0 Bonus (355) 355 TOTAL SCORE: 5229 Bonus ------- High Alert Combat Kills 19 Follower Combat Kills 52 Aligned with FarCom 300 Friendly Fire -16 Cogmind --------- Core Integrity 0/550 Matter 300/300 Energy 100/100 System Corruption 1% Temperature Cool (9) Movement Core (550) Ox10 Location -8/Materials Parts ------- > --- POWER (2) -------- (None) > --- PROPULSION (2) --- (None) > --- UTILITY (4) ------ High-capacity Storage Unit > --- WEAPON (3) ------- (None) > --- INVENTORY (12) --- Cooling System Hardlight Generator Improved Medium Laser Pulse Rifle Pulse Rifle Beam Cannon Particle Cannon Mini Grenade Launcher Field Lobotomy Kit Peak State ------------ > --- POWER ------------ Light Nuclear Core Light Nuclear Core > --- PROPULSION ------- Aluminum Leg Aluminum Leg > --- UTILITY ---------- Cooling System Cooling System High-capacity Storage Unit Hardlight Generator > --- WEAPON ----------- Heavy Particle Gun Heavy Particle Gun Heavy Particle Gun > --- INVENTORY -------- Aluminum Leg Cooling System Improved Medium Laser Pulse Rifle Pulse Rifle Beam Cannon Particle Cannon Mini Grenade Launcher Field Lobotomy Kit [Rating: 30] Favorites ----------- Power Nuclear Core Engine Ion Engine Power Core Nuclear Core Propulsion Aluminum Leg Leg Aluminum Leg Wheel Wheel Hover Unit Improved Hover Unit Utility Cooling System Device Cooling System Storage High-capacity Storage Unit Protection Hardened Light Armor Plating Weapon Improved Medium Laser Energy Gun Improved Medium Laser Energy Cannon Particle Cannon Ballistic Gun Light Assault Rifle Build | -11 -10 -10 -9 -9 -9 -8 -8 ------- Run | Scr Mat Min Mat Min Exi Min Mat Slots Evolved 4 | . . . 2 . . . 2 Power 1 | . . . . . . . 1 Propulsion . | . . . . . . . . Utility 2 | . . . 1 . . . 1 Weapon 1 | . . . 1 . . . . Parts Attached 49 | 5 6 7 17 3 1 . 10 Power 6 | 1 . 1 2 . . . 2 Engine 2 | 1 . . 1 . . . . Core 4 | . . 1 1 . . . 2 Reactor . | . . . . . . . . Propulsion 12 | 2 2 2 2 3 . . 1 Treads . | . . . . . . . . Leg 6 | 2 . . . 3 . . 1 Wheel 2 | . . . 2 . . . . Hover 4 | . 2 2 . . . . . Flight . | . . . . . . . . Utility 14 | . 2 2 6 . 1 . 3 Device 9 | . 2 . 5 . . . 2 Storage 1 | . . . . . 1 . . Processor . | . . . . . . . . Hackware . | . . . . . . . . Protection 4 | . . 2 1 . . . 1 Artifact . | . . . . . . . . Weapon 17 | 2 2 2 7 . . . 4 Energy Gun 14 | 2 2 2 4 . . . 4 Energy Cannon 2 | . . . 2 . . . . Ballistic Gun 1 | . . . 1 . . . . Ballistic Cannon . | . . . . . . . . Launcher . | . . . . . . . . Special Weapon . | . . . . . . . . Impact Weapon . | . . . . . . . . Slashing Weapon . | . . . . . . . . Piercing Weapon . | . . . . . . . . Special Melee Weapon . | . . . . . . . . Unidentified Prototypes 2 | . . . 1 . . . 1 Parts Lost 19 | . . 3 3 . . . 13 Power 2 | . . . . . . . 2 Propulsion 5 | . . 1 1 . . . 3 Utility 4 | . . . . . . . 4 Weapon 8 | . . 2 2 . . . 4 Highest Loss Streak 12 | . . 1 2 . . . 12 Average Slot Usage (%) 95 | . 76 99 95 99 100 100 88 Engine 2 | . 14 11 1 . . . . Core 9 | . . 2 9 11 11 11 12 Leg 11 | . 10 . . 20 22 22 16 Wheel 3 | . . . 16 . . . . Hover 5 | . 17 27 2 . . . . Device 18 | . 5 15 22 22 20 11 18 Storage 2 | . . . . . 1 11 9 Protection 9 | . . 12 11 11 11 11 6 Energy Gun 19 | . 28 28 27 11 11 11 19 Energy Cannon 9 | . . . 2 22 22 22 5 Naked Turns . | . . . . . . . . Heaviest Build 64 | 9 13 15 27 27 57 57 64 Greatest Support 20 | 20 20 16 20 20 20 20 20 Greatest Overweight (x) 4 | . 1 1 2 2 2 2 4 Average Overweight (x) . | . . . . 1 1 2 2 Largest Inventory Capacity 12 | 4 4 4 4 4 12 12 12 Average Capacity 6 | 4 4 4 4 4 4 12 12 Most Carried 11 | 4 4 4 4 4 5 5 11 Average Carried 4 | . 2 3 2 2 3 5 7 Final Capacity 12 | 4 4 4 4 4 12 12 12 Final Carried 9 | 1 4 1 2 3 5 5 9 Class Distribution -------------------- 49% | Tank 27% | Mutant 12% | Skirmisher 11% | Scavenger-Skirmisher Dominant Class ---------------- Mutant | -10/Materials Mutant | -10/Mines Tank | -9/Materials Tank | -9/Mines Tank | -9/Exiles Skirmisher | -8/Mines Scavenger-Skirmisher | -8/Materials Resources | -11 -10 -10 -9 -9 -9 -8 -8 ----------- Run | Scr Mat Min Mat Min Exi Min Mat Matter Collected 663 | 174 42 159 173 30 . . 85 Remotely . | . . . . . . . . Salvage Created 2296 | . 42 174 915 228 . . 937 Parts 107 | . 1 17 50 10 . . 29 Haulers Intercepted 5 | . 1 . 2 . . . 2 Recyclers Shooed 1 | . . . 1 . . . . Parts Field Recycled . | . . . . . . . . Retrieved Matter . | . . . . . . . . Parts Self-Destructed . | . . . . . . . . Prevented . | . . . . . . . . Kills | -11 -10 -10 -9 -9 -9 -8 -8 ------- Run | Scr Mat Min Mat Min Exi Min Mat Combat Hostiles Destroyed 46 | . . 11 16 5 . . 14 Guns 31 | . . 11 14 2 . . 4 Cannons 10 | . . . 1 3 . . 6 Classes Destroyed 11 | . 1 2 4 2 . . 2 Hauler 5 | . 1 . 2 . . . 2 Recycler 3 | . . . 2 . . . 1 Operator 1 | . . . . . . . 1 Watcher 2 | . . . 1 . . . 1 Swarmer 13 | . . 9 4 . . . . Grunt 21 | . . . 7 3 . . 11 Brawler 1 | . . . . 1 . . . Duelist 2 | . . . . 1 . . 1 Sentry 6 | . . . 5 . . . 1 Hunter 1 | . . . . . . . 1 Assembled 2 | . . 2 . . . . . Best Kill Streak 8 | . 1 3 8 3 . . 8 Combat Bots Only 8 | . . 3 8 3 . . 7 Max Kills in Single Turn 2 | . 1 1 2 1 . . 1 Gunslinging 1 | . . . 1 . . . . Exploded . | . . . . . . . . Melee . | . . . . . . . . Uniques/NPCs Destroyed . | . . . . . . . . Combat | -11 -10 -10 -9 -9 -9 -8 -8 -------- Run | Scr Mat Min Mat Min Exi Min Mat Damage Taken 2789 | . . 450 535 21 . . 1783 Core 750 | . . 115 84 . . . 551 Absorbed by Shields 3 | . . . . . . . 3 Core Remaining (%) 77 | 100 . 54 . . . 79 . Volleys Fired 157 | . 4 29 58 9 . . 57 Largest 3 | . 2 2 3 3 . . 3 Hottest 192 | . 112 112 192 192 . . 192 Shots Fired 401 | . 8 56 152 27 . . 158 Gun 343 | . 8 56 150 9 . . 120 Cannon 58 | . . . 2 18 . . 38 Launcher . | . . . . . . . . Special . | . . . . . . . . Kinetic 13 | . . . 13 . . . . Thermal 388 | . 8 56 139 27 . . 158 Explosive . | . . . . . . . . Electromagnetic . | . . . . . . . . Robot Hit Streak 22 | . 3 6 22 5 . . 13 Robot Miss Streak 7 | . 1 3 3 2 . . 7 Penetration Max . | . . . . . . . . Secondary Targets 6 | . . . 3 . . . 3 Max Gunslinging Chain 1 | . . . 1 . . . 1 Shots Hit Robots 253 | . 5 34 96 12 . . 106 Core Hits 86 | . 2 14 29 6 . . 35 Critical Hits . | . . . . . . . . Critical Kills . | . . . . . . . . Critical Parts Destroyed . | . . . . . . . . Melee Attacks . | . . . . . . . . Impact . | . . . . . . . . Slashing . | . . . . . . . . Piercing . | . . . . . . . . Sneak Attacks . | . . . . . . . . Combat Hostiles . | . . . . . . . . Follow-up Attacks . | . . . . . . . . Damage Inflicted 4278 | . 71 448 1378 284 . . 2097 Guns 3563 | . 71 448 1337 99 . . 1608 Cannons 699 | . . . 41 185 . . 473 Explosions . | . . . . . . . . Melee . | . . . . . . . . Ramming 16 | . . . . . . . 16 Kinetic 79 | . . . 79 . . . . Thermal 4183 | . 71 448 1299 284 . . 2081 Explosive . | . . . . . . . . Electromagnetic . | . . . . . . . . Impact . | . . . . . . . . Slashing . | . . . . . . . . Piercing . | . . . . . . . . Highest Corruption 1 | . . 1 . . . . 1 Average Corruption 1 | . . 1 . . . . 1 Corruption Purged . | . . . . . . . . Overload Shots . | . . . . . . . . Overflow Damage 10 | . . . . 7 . . 3 Projectiles 10 | . . . . 7 . . 3 Explosions . | . . . . . . . . Melee . | . . . . . . . . Knockbacks 1 | . . . . . . . 1 Impact 1 | . . . . . . . 1 Kinetic . | . . . . . . . . Secondary . | . . . . . . . . Self-Inflicted Damage 5 | . . . . . . . 5 Shots . | . . . . . . . . Rammed 11 | . . . . . . . 11 Targets Rammed 11 | . . . . . . . 11 Kicked . | . . . . . . . . Crushed . | . . . . . . . . Highest Temperature 377 | . 148 377 171 36 . . 72 Average Temperature 63 | . 80 118 36 15 . . 24 Received Heat Transfer 1003 | . . . 174 12 . . 817 Effects 1 | . . 1 . . . . . Energy Bleed 1 | . . 1 . . . . . Siege Activations . | . . . . . . . . Robots Corrupted . | . . . . . . . . Combat Hostiles . | . . . . . . . . Parts Fried . | . . . . . . . . Impact Corruptions . | . . . . . . . . Robots Melted 5 | . . . 1 . . . 4 Combat Hostiles 5 | . . . 1 . . . 4 Parts Melted 24 | . 2 3 9 1 . . 9 Heat Transferred 8799 | . 185 1147 2886 555 . . 4026 Parts Sabotaged . | . . . . . . . . Parts Stolen . | . . . . . . . . Parts Stripped . | . . . . . . . . Power Chain Reactions . | . . . . . . . . Missiles Intercepted . | . . . . . . . . Alert | -11 -10 -10 -9 -9 -9 -8 -8 ------- Run | Scr Mat Min Mat Min Exi Min Mat Peak Influence 461 | . 22 213 461 422 . . 309 Average Influence 193 | . 5 162 253 383 . . 139 Maximum Alert Level 2 | . . 1 2 2 . . 1 Low Security (%) 50 | 100 100 65 29 . . 100 66 Level 1 34 | . . 34 58 29 . . 33 Level 2 14 | . . . 12 70 . . . Level 3 . | . . . . . . . . Level 4 . | . . . . . . . . Level 5 . | . . . . . . . . High Security . | . . . . . . . . Max Security . | . . . . . . . . Squads Dispatched 1 | . . . 1 . . . . Investigation 1 | . . . 1 . . . . Extermination . | . . . . . . . . Reinforcement . | . . . . . . . . Assault . | . . . . . . . . Garrison . | . . . . . . . . Intercept . | . . . . . . . . Construction Impeded . | . . . . . . . . Haulers Reinforced . | . . . . . . . . Stealth | -11 -10 -10 -9 -9 -9 -8 -8 --------- Run | Scr Mat Min Mat Min Exi Min Mat Distress Signals 3 | . . . 1 . . . 2 Communications Jammed . | . . . . . . . . Distress Signals . | . . . . . . . . Times Spotted 69 | . . 17 22 6 . . 24 Peak Tracking Total 7 | . . 7 4 2 . . 5 Tactical Retreats 4 | . . 2 1 . . . 1 Traps | -11 -10 -10 -9 -9 -9 -8 -8 ------- Run | Scr Mat Min Mat Min Exi Min Mat Traps Triggered 1 | . . . 1 . . . . Indirectly . | . . . . . . . . Trap Hack Attempts . | . . . . . . . . Triggered . | . . . . . . . . Disarmed . | . . . . . . . . Reprogrammed . | . . . . . . . . Reused . | . . . . . . . . Traps Extracted . | . . . . . . . . Installed . | . . . . . . . . Triggered . | . . . . . . . . Machines | -11 -10 -10 -9 -9 -9 -8 -8 ---------- Run | Scr Mat Min Mat Min Exi Min Mat Machines Disabled 12 | . 1 . 6 4 . . 1 Max in Single Turn 2 | . 1 . 1 2 . . 1 Machines Sabotaged . | . . . . . . . . Garrisons Compromised . | . . . . . . . . Overloaded Fab Kills . | . . . . . . . . Fab Network Shutdowns . | . . . . . . . . Hacking | -11 -10 -10 -9 -9 -9 -8 -8 --------- Run | Scr Mat Min Mat Min Exi Min Mat Machines Accessed 10 | . . 2 3 1 1 . 3 Terminals 8 | . . 1 3 1 . . 3 Fabricators . | . . . . . . . . Repair Stations . | . . . . . . . . Recycling Units . | . . . . . . . . Scanalyzers . | . . . . . . . . Garrison Access . | . . . . . . . . Total Hacks 28 | . . 2 11 3 1 . 11 Successful 19 | . . 2 6 3 1 . 7 Failed 9 | . . . 5 . . . 4 Catastrophic 1 | . . . 1 . . . . Database Lockouts . | . . . . . . . . Manual 12 | . . . 5 1 1 . 5 Terminals 26 | . . 1 11 3 . . 11 Fabricators . | . . . . . . . . Repair Stations . | . . . . . . . . Recycling Units . | . . . . . . . . Scanalyzers . | . . . . . . . . Garrison Access . | . . . . . . . . Terminal Hacks 10 | . . 2 1 2 1 . 4 Prototype ID Bank 1 | . . . . . . . 1 Open Door 1 | . . 1 . . . . . Emergency Access Points 1 | . . . . . . . 1 Alert Level 1 | . . . . . . . 1 Surveillance Status 1 | . . . . . . . 1 Patrol Status 1 | . . . . 1 . . . Zone Layout 3 | . . 1 1 1 . . . EX-Prototype ID Bank 1 | . . . . . 1 . . Fabricator Hacks . | . . . . . . . . Repair Station Hacks . | . . . . . . . . Recycling Unit Hacks . | . . . . . . . . Scanalyzer . | . . . . . . . . Garrison Access Hacks . | . . . . . . . . Unauthorized Hacks 20 | . . . 10 2 . . 8 Terminals 9 | . . . 5 1 . . 3 Track 4 | . . . 3 1 . . . Botnet 3 | . . . 1 . . . 2 Disrupt 1 | . . . . . . . 1 Operators 1 | . . . 1 . . . . Fabricators . | . . . . . . . . Repair Stations . | . . . . . . . . Recycling Units . | . . . . . . . . Scanalyzers . | . . . . . . . . Garrison Access . | . . . . . . . . Data Cores Recovered . | . . . . . . . . Used . | . . . . . . . . Hacking Detections 8 | . . 1 3 1 . . 3 Full Trace Events 1 | . . . 1 . . . . Feedback Events . | . . . . . . . . Feedback Blocked . | . . . . . . . . Robot Schematics Acquired . | . . . . . . . . Robots Built . | . . . . . . . . Matter . | . . . . . . . . Time . | . . . . . . . . Total Robot Build Rating . | . . . . . . . . Part Schematics Acquired . | . . . . . . . . Parts Built . | . . . . . . . . Matter . | . . . . . . . . Time . | . . . . . . . . Total Part Build Rating . | . . . . . . . . Parts Repaired . | . . . . . . . . Time . | . . . . . . . . Parts Recycled . | . . . . . . . . Recycled Matter . | . . . . . . . . Retrieved Matter . | . . . . . . . . Retrieved Components . | . . . . . . . . Parts Scanalyzed . | . . . . . . . . Part Schematics Acquired . | . . . . . . . . Parts Damaged . | . . . . . . . . Bothacking | -11 -10 -10 -9 -9 -9 -8 -8 ------------ Run | Scr Mat Min Mat Min Exi Min Mat Used RIF Installer . | . . . . . . . . Robots Hacked . | . . . . . . . . Non-combat . | . . . . . . . . Combat . | . . . . . . . . Robot Hacks Applied . | . . . . . . . . Relay Couplers Released . | . . . . . . . . Robots Rewired . | . . . . . . . . Allies Hacked . | . . . . . . . . Hacks Repelled . | . . . . . . . . Allies | -11 -10 -10 -9 -9 -9 -8 -8 -------- Run | Scr Mat Min Mat Min Exi Min Mat Total Allies 1 | . . . . 1 . . . Largest Group 1 | . . . . 1 1 . . Highest-Rated Group 31 | . . . . 31 31 . . Highest-Rated Ally 31 | . . . . 31 31 . . Total Orders . | . . . . . . . . Ally Attacks 7 | . . . . 7 . . . Total Damage 127 | . . . . 127 . . . Kills 2 | . . . . 2 . . . Allies Corrupted . | . . . . . . . . Allies Melted . | . . . . . . . . Intel | -11 -10 -10 -9 -9 -9 -8 -8 ------- Run | Scr Mat Min Mat Min Exi Min Mat Robot Analysis Total . | . . . . . . . . Derelict Logs Recovered 2 | . . 1 . 1 . . . Drone Launches . | . . . . . . . . Drone Recoveries . | . . . . . . . . Exploration | -11 -10 -10 -9 -9 -9 -8 -8 ------------- Run | Scr Mat Min Mat Min Exi Min Mat Turns Passed 2791 | 74 110 397 613 391 438 160 608 Spaces Moved 1766 | 59 94 477 366 234 284 85 167 Core 10 | 10 . . . . . . . Treads . | . . . . . . . . Legs 842 | 49 29 . . 228 284 85 167 Wheels 320 | . . . 314 6 . . . Hover 594 | . 65 477 52 . . . . Flight . | . . . . . . . . Fastest Speed 50 | 50 56 56 56 100 150 180 180 Average Speed 111 | 108 76 56 86 148 153 180 184 Slowest Speed 240 | 120 130 120 116 150 180 180 240 Overloaded Moves . | . . . . . . . . Propulsion Burnouts . | . . . . . . . . Robots Hopped . | . . . . . . . . Cave-ins Triggered . | . . . . . . . . Exploration Rate (%) 44 | 3 28 98 53 64 69 20 20 Regions Visited 7 Branch Regions 4 Pre-discovered Areas 1 | . . . . 1 . . . Known Exits Taken 1 | . . . . . . 1 . Unknown Exits Taken 6 | 1 1 1 1 1 1 . . Scrap Searched 3 | . . 2 . 1 . . . Spaces Dug . | . . . . . . . . Terrain Destroyed . | . . . . . . . . Melee . | . . . . . . . . Projectile . | . . . . . . . . AOE . | . . . . . . . . Actions | -11 -10 -10 -9 -9 -9 -8 -8 --------- Run | Scr Mat Min Mat Min Exi Min Mat Total 2226 | 69 126 547 545 257 288 92 302 Wait 157 | . 4 25 70 6 . 8 44 Move 1759 | 58 93 476 365 233 283 84 167 Hop . | . . . . . . . . Pick Up 61 | 6 12 5 20 4 3 . 11 Fast Attach . | . . . . . . . . Attach 25 | 5 4 3 7 1 . . 5 Detach . | . . . . . . . . Swap 24 | . 2 4 10 2 1 . 5 Drop 32 | . 7 5 15 2 1 . 2 Fire 157 | . 4 29 58 9 . . 57 Melee . | . . . . . . . . Ram 7 | . . . . . . . 7 Kick 4 | . . . . . . . 4 Crush . | . . . . . . . . Escape Stasis . | . . . . . . . . Rewire . | . . . . . . . . Trap . | . . . . . . . . Miscellaneous . | . . . . . . . . Route ------- -11/Scrapyard -10/Materials -10/Mines (discovered 2 exits: *Mat x2) -9/Materials -9/Mines (discovered 3 exits: *Mat x2 / *Exi) -9/Exiles -8/Mines -8/Materials History --------- Turn | Location | Event 6 | -11/Scrapyard | Discovered new exit (range 16) 75 | -11/Scrapyard | Entered Materials 178 | -10/Materials | Discovered new exit (range 14) 185 | -10/Materials | Entered Mines 212 | -10/Mines | Met a Derelict bent on vengeance 240 | -10/Mines | Discovered new exit (range 16) 302 | -10/Mines | Build established: Mutant 351 | -10/Mines | Learned Materials stockpile data 352 | -10/Mines | Discovered new exit (range 11) 456 | -10/Mines | Assembled infested the area 506 | -10/Mines | Met a Derelict who couldn't figure out how to use a Trap Extractor 582 | -10/Mines | Entered Materials 582 | -9/Materials | Evolved 2 slots: Utility x1, Weapon x1 957 | -9/Materials | Build established: Tank 1035 | -9/Materials | Discovered new exit (range 7) 1052 | -9/Materials | Destroyed 8 combat bots 1195 | -9/Materials | Entered Mines 1203 | -9/Mines | Escorted by a lone wolf Derelict 1223 | -9/Mines | Learned location of Storage (-7) 1375 | -9/Mines | Discovered new exit (range 15) 1524 | -9/Mines | Identified exit to Materials 1576 | -9/Mines | Deemed a non-threat by the Exiles lab entrance 1578 | -9/Mines | Discovered new exit (range 5) 1586 | -9/Mines | Entered Exiles 1586 | -9/Exiles | Accompanied by 1 ally 1627 | -9/Exiles | Met 8R-AWN 1649 | -9/Exiles | Met EX-HEX 1696 | -9/Exiles | Met EX-BIN 1712 | -9/Exiles | Aligned with FarCom system 1714 | -9/Exiles | Given EX-Vault access code 1748 | -9/Exiles | Opened EX-Vault 1762 | -9/Exiles | Found Field Lobotomy Kit 1793 | -9/Exiles | Warned to stay clear of 0b10 Research branches 1835 | -9/Exiles | Met EX-DEC 2001 | -9/Exiles | Discovered new exit (range 14) 2024 | -9/Exiles | Left Exiles lab with Field Lobotomy Kit 2024 | -9/Exiles | Entered Mines 2167 | -8/Mines | Discovered exit to Materials (range 13) 2184 | -8/Mines | Entered Materials 2184 | -8/Materials | Evolved 2 slots: Power x1, Utility x1 2319 | -8/Materials | Build established: Skirmisher 2375 | -8/Materials | Destroyed 7 combat bots 2668 | -8/Materials | Build established: Scavenger-Skirmisher 2776 | -8/Materials | Core integrity fell below 50% 2786 | -8/Materials | Core integrity fell below 20% 2792 | -8/Materials | Destroyed by G-47 Trooper with Particle Gun Last Messages --------------- 02738_ Hvy. Particle Gun temporarily disabled. 02741_ Slammed into G-47 Trooper. 02743_ K-01 Serf collects debris. 02743_ Slammed into G-47 Trooper. 02745_ Destabilizing: Short circuit. 02745_ Broken Aluminum Leg permanently disabled. 02753_ Slammed into G-47 Trooper. 02756_ Spread Laser destroyed. 02758_ Hrd. Light Armor Plating destroyed. 02760_ Hvy. Particle Gun destroyed. 02760_ Slammed into G-47 Trooper. 02766_ K-01 Serf collects debris. 02766_ Slammed into G-47 Trooper. 02773_ C-30 ARC bursts open, deploying its payload. 02773_ S-10 Pest unfolds itself. 02774_ Broken Aluminum Leg destroyed. 02776_ Cooling System destroyed. 02778_ Slammed into G-47 Trooper. 02787_ S-10 Pest suffers critical hit. 02789_ Slammed into G-47 Trooper. Map ----- +----------------------------------------------------+ | | | ?????????????????????????????????????????????????? | | ?????????????????????????????????????????????????? | | ?????????????????????????????????????????????????? | | ?????????????????????????????????????????????????? | | ?????????????????????????????????????????????????? | | ?????????????????????????????????????????????????? | | ?????????????????????????????????????????????????? | | ?????????????????????????????????????????????????? | | ?????????????????????????????????????????????????? | | ?????????????????????????????????????????????????? | | ?????????????????????????????????????????????????? | | ??????????????????????????????s??????????????????? | | ???????????????????? ????????????????????????????? | | ?????????????????###+##??????????????????????????? | | ??????????????##?# ?????????????????????????## | | ??????????????? # /?????????????????????????# | | ???????????????? # =$?????????????????????????# | | ?????????????????" %#???????#????????????????# | | ?????????????????# #??????"#????????????????# | | ?????????????????# #######+###??????????????# | | ?????????????????# # % % #??????????????# | | ?????????????????# #%% s #??????????????# | | ?????????????????# #%%s #??????????????# | | ?????????????????# #%%% /! #??????????????#" | | ?????????????? + +%@ ! #??????????????#" | | ?????????????????# %# gw %% #??????????????#" | | ?????????????????# # #??????????????# | | ?????????????????# # #??????????????## | | ?????????????????# #######+###???????????????? | | ?????????????????# #?????? #?????????????????? | | ?????????????????# #???????#?????????????????? | | ?????????????????# #?????????????????????????? | | ?????????????????# #?????????????????????????? | | ?????????????????# #??####+###??????????###### | | ????????????????## ##?# #??????????# | | ????????????????# #?# "" #??????????# | | ????????????????# #?# """ #??????????# | | ????????????????# #?# S" #??????????#+#### | | ????????????????# #?? #??????????# #??? | | ????????????????# #??? !???????????# #??? | | ????????????????# ######+############## #### | | ????????????????# % %% % % % ! | | ???????????######## ########%################### | | ???????????# # ########[T#????????????????? | | ???????????# %! + # ##%##????????????????? | | ???????????# %%# # !##*#?????##??????????? | | ???????????# """ # # ##%##?? #??????????? | | ???????????# """ # # #===# """ #??????????? | | ???????????# """ # # #[ + """ #??????????? | +----------------------------------------------------+ Best States ------------- Heat Dissipation 75 Coolant Potential 50 Energy Generation 23 Energy Capacity 300 Matter Stores 300 Matter Capacity 300 Sight Range 16 Terrain Scan Density 10 Armor Coverage 150 Evasion (%) 53 Item Schematics ----------------- None Robot Schematics ------------------ None Fabricated ------------ Nothing Alien Tech Used ----------------- None Achievements -------------- None Challenges ------------ None Game ------ Seed VariableSuspensionStreamer Manual? 0 Play Time 00:28:49 Cumulative 84.3 hours Start 2020.03.23 @ 12:43:12 End 2020.03.23 @ 21:50:48 Sessions 3 Manual Loads 0 Difficulty Rogue Special Mode None Game No. 67 Rogue 67 Adventurer 0 Explorer 0 Win Type - Total 2 Types 1/0/0/1/0/0/0 Lore% 58 Gallery% 65 Achievement% 51 Wizard Run 0 Options --------- ASCII 0 Keyboard 0 Movement Numpad Keybinds 0 Fullscreen 1 Font 18/SmallcapsGlow Map View 76x50 Tactical HUD 1 Map Filters NONE Filters NONE Steam 1 RUN: eb283359-5a32-4b24-a409-aa327ae08ba7